[Event "DFMM-LV 2023"]
[Site "Braunfels"]
[Date "2023.06.10"]
[Round "4.3"]
[White "Zozulia, Anna"]
[Black "Braeutigam, Katerina"]
[Result "1/2-1/2"]
[Annotator "TA"]
[ECO "C07"]
[WhiteElo "2236"]
[BlackElo "1957"]
[PlyCount "68"]
[EventDate "2023.06.09"]
[EventType "team-tourn"]
[EventCountry "GER"]
[SourceTitle "playchess.com"]
[Source "ChessBase"]
[SourceQuality "1"]
[TimeControl "40/5400+30:1800+30"]

{[%evp 25,68,8,16,8,25,0,0,-16,0,0,-5,-8,0,0,15,-15,0,-7,-2,-12,-12,-34,-6,-4,-6,-6,-4,-6,0,0,0,-36,0,0,0,-12,-12,-12,0,-14,0,0,0,-14,0]} 1. e4 {[%emt 0:00:05]} e6 {[%emt 0:00:03]} 2. d4 {[%emt 0:00:38]} d5 {[%emt 0:00:04]} 3. Nd2 {[%emt 0:00:36]} c5 {[%emt 0:00:08]} 4. Ngf3 {[%emt 0:01:54]} Nc6 {[%emt 0:00:09]} 5. exd5 {[%emt 0:01:06]} Qxd5 {[%emt 0:00:18]} 6. Bc4 {[%emt 0:01:58]} Qd8 {[%emt 0:00:23]} 7. Nb3 {[%emt 0:10:20]} cxd4 {[%emt 0:12:42]} 8. Nbxd4 {[%emt 0:00:20]} Nxd4 {[%emt 0:00:38]} 9. Qxd4 {[%emt 0:03:17]} Qxd4 {[%emt 0:03:27]} 10. Nxd4 {[%emt 0:00:06]} a6 {[%emt 0:01:18]} 11. Bf4 {[%emt 0:11:35]} b5 {[%emt 0:11:42]} 12. Be2 {[%emt 0:20:58]} Bb7 {[%emt 0:03:16]} 13. O-O {[%emt 0:01:09]} Nf6 {[%emt 0:07:44][%cal Bg8f6,Bf6d5,Bd5b6,Bb6a4,Ba4b2][%mdl 32]} 14. c3 {[%emt 0:08:35] C07: French Tarrasch: 3...c5, 4 Ngf3 and 4 exd5 Qxd5.} Nd5 {[%emt 0:10:43]} 15. Bg3 {[%emt 0:01:23]} Nb6 {[%emt 0:10:25] [#]} 16. Bh5 $146 {[%emt 0:07:37]} ({Predecessor:} 16. Rfe1 O-O-O 17. Nf3 Bd6 18. Ng5 Bxg3 19. fxg3 Rd5 20. Nxf7 Rf8 21. Rf1 Kc7 22. Bf3 Rxf7 23. Bxd5 Rxf1+ 24. Rxf1 Bxd5 {1-0 Schmandt,G (2079)-Haeberle,A (1849) GER-ch49 V1 email 2008}) 16... g6 {[%emt 0:09:04]} 17. Be5 {[%emt 0:17:31]} Rg8 {[%emt 0:01:09]} 18. Be2 {[%emt 0:00:05]} Na4 {[%emt 0:09:13]} 19. c4 {[%emt 0:01:03]} bxc4 {[%emt 0:03:12]} 20. Bxc4 {[%emt 0:00:07][%cal Od4e6] [#] Black must now prevent Nxe6!} (20. Rfc1 $5 {[%cal Rc1c4]}) 20... Nxb2 {[%emt 0:04:18]} 21. Be2 {[%emt 0:04:08] Threatens to win with Rfb1.} Na4 {[%emt 0:01:30]} 22. Rfc1 {[%emt 0:00:06]} Nc5 {[%emt 0:03:58]} 23. Rab1 {[%emt 0:00:14][%cal Oc1c5] Hoping for Rxc5!} Be4 {[%emt 0:01:20]} 24. Rb8+ {[%emt 0:03:26]} Rxb8 {[%emt 0:00:11]} 25. Bxb8 {[%emt 0:00:02]} Kd7 {[%emt 0:04:32]} 26. Ba7 {[%emt 0:00:15]} Nd3 {[%emt 0:01:05]} 27. Rd1 {[%emt 0:01:33]} Nb4 {[%emt 0:00:54]} 28. a3 {[%emt 0:01:41]} Nc6 {[%emt 0:00:17]} (28... Nd5 $5 {[%cal Rd5c3]} 29. Bxa6 (29. f3 Nc3 $15) 29... Bxa3 $15) 29. Nxc6+ {[%emt 0:01:32] The position is equal.} Kxc6 {[%emt 0:00:02]} 30. Rd8 {[%emt 0:00:05]} Kc7 {[%emt 0:00:52]} 31. Rb8 {[%emt 0:01:51]} Bb7 {[%emt 0:00:18]} 32. Re8 {[%emt 0:00:27]} Kd7 {[%emt 0:00:33]} 33. Rb8 {[%emt 0:00:08]} Kc7 {[%emt 0:00:03]} 34. Re8 {[%emt 0:00:28]} Kd7 {[%emt 0:00:32] Not much happened in this game.   Weighted Error Value: White=0.08 (flawless) /Black=0.06 (flawless)} 1/2-1/2

[Event "DFMM-LV 2023"]
[Site "Braunfels"]
[Date "2023.06.10"]
[Round "4.4"]
[White "Braeutigam, Irina"]
[Black "Cosma, Elena-Luminita"]
[Result "0-1"]
[Annotator "TA"]
[ECO "D02"]
[WhiteElo "2007"]
[BlackElo "2222"]
[PlyCount "100"]
[EventDate "2023.06.09"]
[EventType "team-tourn"]
[EventCountry "GER"]
[SourceTitle "playchess.com"]
[Source "ChessBase"]
[SourceQuality "1"]
[TimeControl "40/5400+30:1800+30"]

{[%evp 15,100,-7,0,0,0,-31,-28,-38,-6,-30,-14,-42,-12,-172,-26,-57,-20,-69,-75,-68,-54,-60,-52,-56,-34,-33,-53,-53,-25,-121,-132,-145,-147,-183,-184,-190,-95,-207,-203,-185,-197,-246,-146,-211,-216,-205,-181,-191,-173,-175,-163,-164,-166,-166,-159,-255,-255,-256,-252,-250,-243,-241,-206,-288,-274,-420,-355,-329,-276,-285,-276,-422,-256,-351,-358,-386,-372,-352,-354,-508,-493,-29972,-29974,-29974,-29971,-29974,-29975]} 1. d4 {[%emt 0:00:07]} d5 {[%emt 0:00:08]} 2. Bf4 {[%emt 0:00:05]} e6 {[%emt 0:02:04]} 3. e3 {[%emt 0:00:30]} Bd6 {[%emt 0:00:53]} 4. Bg3 {[%emt 0:00:08]} Nf6 {[%emt 0:00:14]} 5. Bd3 {[%emt 0:00:42]} c5 {[%emt 0:02:29]} 6. c3 {[%emt 0:00:35]} Nc6 {[%emt 0:00:06]} 7. Nf3 {[%emt 0:01:01]} O-O {[%emt 0:03:40]} 8. Nbd2 {[%emt 0:01:02]} b6 {[%emt 0:01:09][%cal Bb7b6,Bb6b5,Bb5a4][%mdl 32]} 9. e4 {[%emt 0:13:04] Black must now prevent e5. D02: 1 d4 d5 2 Nf3 sidelines, including 2...Nf6 3 g3 and 2...Nf6 3 Bf4.} Be7 $1 {[%emt 0:01:16] 9...Be7 is better than 9...dxe4.} 10. e5 {[%emt 0:10:12]} Nh5 {[%emt 0:00:45]} 11. Qe2 {[%emt 0:05:50] Black has an edge.} g6 {[%emt 0:03:46] [#]} 12. Rd1 $146 {[%emt 0:06:59]} ({Predecessor:} 12. O-O) 12... c4 {[%emt 0:04:22]} 13. Bc2 {[%emt 0:07:11]} b5 {[%emt 0:00:11]} 14. b3 $2 {[%emt 0:01:52]} (14. a3 $11) 14... Bd7 {[%emt 0:03:39]} (14... b4 $19 15. bxc4 bxc3) 15. O-O {[%emt 0:12:32]} a5 {[%emt 0:09:45]} 16. a4 {[%emt 0:09:42]} (16. Qe3 $11) 16... cxb3 $15 {[%emt 0:01:08]} 17. Nxb3 {[%emt 0:00:59]} ({Don't play} 17. Bxb3 bxa4 18. Bc2 a3) 17... bxa4 {[%emt 0:02:59]} 18. Nc5 {[%emt 0:00:20]} Nxg3 {[%emt 0:04:11]} 19. hxg3 {[%emt 0:00:09]} Bxc5 {[%emt 0:00:31]} 20. dxc5 {[%emt 0:00:04]} Qe7 {[%emt 0:01:09]} 21. Qe3 {[%emt 0:00:41]} Rfc8 {[%emt 0:02:30]} 22. Ra1 {[%emt 0:02:01] [#]} (22. Nh2 $1 $11) 22... Nb8 $1 $17 {[%emt 0:02:20]} 23. Bxa4 {[%emt 0:00:48]} Qxc5 {[%emt 0:04:31]} 24. Qh6 {[%emt 0:01:22] Ng5 would kill now.} Qf8 {[%emt 0:00:29]} (24... Qxc3 {is a self mate.} 25. Ng5) 25. Qe3 {[%emt 0:02:16]} Rc4 {[%emt 0:03:58]} ({Better is} 25... Bxa4 $19 26. Rxa4 Nd7) 26. Bxd7 {[%emt 0:05:51]} (26. Bb3 $17 Re4 27. Qd2) 26... Nxd7 $19 {[%emt 0:00:23]} 27. Nd2 {[%emt 0:00:05]} Rc7 {[%emt 0:01:24]} 28. Ra4 {[%emt 0:01:47]} (28. c4 {might work better.}) 28... Rac8 {[%emt 0:02:13]} (28... Qc5 $19 {...Qxe3 would be deadly.} 29. Qxc5 Nxc5) 29. Rxa5 {[%emt 0:02:22]} (29. c4 $17 {keeps fighting.}) 29... Rxc3 {[%emt 0:00:23]} 30. Qd4 {[%emt 0:04:00]} Qg7 {[%emt 0:08:41]} 31. Re1 {[%emt 0:01:45]} Rc1 {[%emt 0:09:01]} 32. Ra1 {[%emt 0:00:18]} Rxa1 {[%emt 0:00:41]} (32... Qxe5 $2 33. Qxe5 Nxe5 34. Raxc1 $18) 33. Qxa1 {[%emt 0:00:07]} Qf8 {[%emt 0:00:04]} 34. Qa7 {[%emt 0:03:05]} Nc5 $36 {[%emt 0:02:34][%mdl 2048] Black is on the roll.} 35. Rc1 {[%emt 0:04:05]} (35. Ra1 $17) 35... Nd3 {[%emt 0:03:24][%csl LRc1,LRe5][%mdl 64] [#] Discovered Attack} 36. Rxc8 {[%emt 0:01:15]} Qxc8 {[%emt 0:00:06][%mdl 4096] Endgame KQN-KQN} 37. Qd4 {[%emt 0:01:43]} Qc1+ {[%emt 0:03:56]} 38. Nf1 {[%emt 0:00:04]} Qc4 {[%emt 0:02:43]} 39. Qb6 {[%emt 0:00:34]} Kg7 {[%emt 0:00:19]} ({Less strong is} 39... Nxe5 40. Qb8+ Kg7 41. Qxe5+ Kg8 42. Qb8+ Kg7 43. Qb2+ Kg8 44. Nh2 $16) 40. Ne3 {[%emt 0:02:03]} (40. Qe3 {was worth a try.}) 40... Qc1+ {[%emt 0:01:46]} 41. Nf1 {[%emt 0:31:01]} Nxe5 {[%emt 0:36:11]} 42. Qd4 {[%emt 0:00:00]} f6 {[%emt 0:00:00]} 43. f4 {[%emt 0:00:00]} (43. Qa7+ {was necessary.} Nf7 44. Qd7) 43... Nf7 {[%emt 0:00:00]} 44. Kf2 {[%emt 0:00:00]} Qc2+ {[%emt 0:00:00]} 45. Kf3 {[%emt 0:00:00]} Qb3+ {[%emt 0:00:00]} 46. Ne3 {[%emt 0:00:00]} h5 {[%emt 0:00:00]} 47. g4 {[%emt 0:00:00]} (47. Kf2 $142) 47... hxg4+ {[%emt 0:00:00]} 48. Kxg4 {[%emt 0:00:00]} (48. Ke2 $19 Qa2+ 49. Kd3) 48... Nh6+ {[%emt 0:00:00] Black mates.} 49. Kf3 {[%emt 0:00:00]} Nf5 {[%emt 0:00:00]} 50. Qa7+ {[%emt 0:00:00]} Kh6 {[%emt 0:00:00] Weighted Error Value: White=0.55/Black=0.23 (precise)} 0-1

[Event "DFMM-LV 2023"]
[Site "Braunfels"]
[Date "2023.06.10"]
[Round "4.5"]
[White "Hess, Olena"]
[Black "Gressmann, Hanna"]
[Result "1/2-1/2"]
[Annotator "TA"]
[ECO "D78"]
[WhiteElo "2078"]
[BlackElo "1933"]
[PlyCount "27"]
[EventDate "2023.06.09"]
[EventType "team-tourn"]
[EventCountry "GER"]
[SourceTitle "playchess.com"]
[Source "ChessBase"]
[SourceQuality "1"]
[TimeControl "40/5400+30:1800+30"]

{[%evp 14,27,18,18,23,-7,0,-13,0,0,22,22,20,-17,-23,-20]} 1. Nf3 {[%emt 0:00:02]} d5 {[%emt 0:00:09]} 2. d4 {[%emt 0:00:10]} Nf6 {[%emt 0:00:08]} 3. c4 {[%emt 0:00:16]} c6 {[%emt 0:00:12]} 4. g3 {[%emt 0:00:20]} g6 {[%emt 0:00:26]} 5. b3 {[%emt 0:01:51]} Bg7 {[%emt 0:01:07]} 6. Bg2 {[%emt 0:00:36]} O-O {[%emt 0:02:43]} 7. Bb2 {[%emt 0:00:53]} Bf5 {[%emt 0:04:40]} 8. O-O {[%emt 0:04:16]} a5 {[%emt 0:07:39] D78: Fianchetto Grünfeld: 6 0-0 c6.} 9. a4 {[%emt 0:03:00]} Na6 {[%emt 0:08:40]} 10. Nbd2 {[%emt 0:19:59]} Ne4 {[%emt 0:07:46] [#]} 11. Nh4 $146 {[%emt 0:04:36]} ({Predecessor:} 11. e3 Nb4 12. Nxe4 Bxe4 13. Ne5 Bc2 14. Qf3 Bxb3 15. cxd5 cxd5 16. Bc3 e6 17. Rfb1 Bc2 18. Bxb4 axb4 19. Rxb4 Qd6 20. Rb2 Bxa4 21. Rxb7 Bxe5 22. dxe5 Qxe5 23. Rc1 Rab8 24. Rxb8 Rxb8 {0-1 Bombardiere Castro,A-Gonzalez Garcia,J (2449) Internet Section 09B g/8'+2" blitz 2004 (2)}) 11... Nxd2 {[%emt 0:11:08]} 12. Qxd2 {[%emt 0:00:02]} Be6 {[%emt 0:00:18]} 13. c5 {[%emt 0:03:42]} b6 {[%emt 0:05:57]} 14. cxb6 {[%emt 0:07:37] An uneventful encounter.   Weighted Error Value: White=0.15 (very precise) /Black=0.07 (flawless)} 1/2-1/2

[Event "DFMM-LV 2023"]
[Site "Braunfels"]
[Date "2023.06.10"]
[Round "4.6"]
[White "Rosmait, Emily"]
[Black "Trunz, Michelle"]
[Result "0-1"]
[Annotator "TA"]
[ECO "B52"]
[WhiteElo "1862"]
[BlackElo "2010"]
[PlyCount "64"]
[EventDate "2023.06.09"]
[EventType "team-tourn"]
[EventCountry "GER"]
[SourceTitle "playchess.com"]
[Source "ChessBase"]
[SourceQuality "1"]
[TimeControl "40/5400+30:1800+30"]

{[%evp 20,64,25,11,6,8,22,10,30,30,136,123,183,97,81,-7,-9,-10,0,0,0,-17,-5,-10,-9,0,-6,-299,-302,-295,-291,-314,-306,-292,-291,-533,-550,-820,-820,-812,-802,-1938,-1820,-1850,-1586,-1500,-690]} 1. e4 {[%emt 0:00:03]} c5 {[%emt 0:00:06]} 2. Nf3 {[%emt 0:00:04]} d6 {[%emt 0:00:04]} 3. Bb5+ {[%emt 0:00:08]} Bd7 {[%emt 0:00:07]} 4. Bxd7+ {[%emt 0:00:09]} Nxd7 {[%emt 0:00:03]} 5. c4 {[%emt 0:02:27]} Ngf6 {[%emt 0:00:22]} 6. Nc3 {[%emt 0:00:18]} e6 {[%emt 0:00:19]} 7. O-O {[%emt 0:00:41]} Be7 {[%emt 0:00:10]} 8. b3 {[%emt 0:05:22]} O-O {[%emt 0:01:24]} 9. d4 {[%emt 0:01:16]} cxd4 {[%emt 0:03:44]} 10. Nxd4 {[%emt 0:00:03]} a6 {[%emt 0:01:11]} 11. Be3 {[%emt 0:04:25]} Rc8 {[%emt 0:01:11][%cal Ob7b5] B52: Sicilian: Moscow Variation with 3...Bd7.} 12. Rc1 {[%emt 0:02:27]} Qa5 {[%emt 0:02:53]} 13. Qd2 {[%emt 0:08:41][%cal Oc3d5]} Qh5 {[%emt 0:01:06] Dodges Nd5. The position is equal.} 14. f3 {[%emt 0:02:48] [#]} d5 $146 {[%emt 0:26:10]} (14... h6 $11) ({Predecessor:} 14... Rfd8 15. g4 Qa5 16. g5 Ne8 17. Nd5 Qxd2 18. Nxe7+ Kf8 19. Bxd2 Kxe7 20. f4 Nc5 {0-1 Ionescu,I (2260)-Caravan,M (2170) ROM-ch op (Women) 1997}) 15. cxd5 $16 {[%emt 0:10:43]} exd5 {[%emt 0:03:28]} (15... Ba3 $16) 16. Nf5 {[%emt 0:11:15]} (16. g4 $18 Qg6 17. Nxd5 (17. exd5 Rfe8 $16) 17... Nxd5 18. Nf5 (18. exd5 Rxc1 19. Qxc1 Qf6 $16)) 16... Ba3 {[%emt 0:05:08] [#]} 17. Rc2 {[%emt 0:04:24]} ({White should play} 17. g4 $1 $16 {[%cal Rg4h5]} Qh3 18. Bd4) 17... dxe4 $11 {[%emt 0:04:41]} 18. Ng3 {[%emt 0:02:37]} Qa5 {[%emt 0:02:37] White must now prevent ...exf3.} 19. Ncxe4 {[%emt 0:03:26]} Bb4 $36 {[%emt 0:01:45][%mdl 2048] Black is pushing.} 20. Qf2 {[%emt 0:07:22]} Nd5 {[%emt 0:03:00]} 21. Bd4 {[%emt 0:01:15]} Nf4 {[%emt 0:01:43][%cal Ob4e1] Threatens to win with ...Be1!} 22. Rxc8 {[%emt 0:07:49]} Rxc8 {[%emt 0:02:59]} 23. Bxg7 $2 {[%emt 0:07:48][%mdl 8192] This move loses the game for White.} Kxg7 $19 {[%emt 0:05:06]} 24. Qd4+ {[%emt 0:00:06]} Ne5 {[%emt 0:00:26]} 25. Nf5+ {[%emt 0:00:11]} Kf8 {[%emt 0:01:18]} 26. Kh1 {[%emt 0:00:18] [#]} Rd8 $1 {[%emt 0:10:51]} 27. Ned6 $2 {[%emt 0:06:00]} (27. Qa1) 27... Ne6 {[%emt 0:02:48][%mdl 64] Deflection. Black is clearly winning.} 28. Qh4 {[%emt 0:03:46][%cal Oh4h7] White threatens Qxh7! and mate.} Bxd6 {[%emt 0:02:47]} 29. Qxh7 {[%emt 0:01:42]} Ng6 {[%emt 0:06:28]} (29... Qxa2 $2 30. Qh8#) 30. Nh6 {[%emt 0:02:51]} Ng5 {[%emt 0:01:02]} (30... Qxa2 $2 31. Qxf7#) 31. Qg8+ {[%emt 0:00:10]} Ke7 {[%emt 0:00:08]} 32. Qg7 {[%emt 0:00:34]} Qe5 {[%emt 0:03:43] Weighted Error Value: White=0.75/Black=0.16 (very precise)} 0-1

[Event "DFMM-LV 2023"]
[Site "Braunfels"]
[Date "2023.06.10"]
[Round "4.7"]
[White "Trunz, Elena"]
[Black "Freter, Anke"]
[Result "1-0"]
[Annotator "TA"]
[ECO "B23"]
[WhiteElo "2122"]
[BlackElo "1855"]
[PlyCount "79"]
[EventDate "2023.06.09"]
[EventType "team-tourn"]
[EventCountry "GER"]
[SourceTitle "playchess.com"]
[Source "ChessBase"]
[SourceQuality "1"]
[TimeControl "40/5400+30:1800+30"]

{[%evp 9,79,47,54,58,83,81,131,112,129,115,139,126,134,125,183,145,197,187,277,274,302,258,324,337,341,288,293,272,287,273,306,291,288,287,308,296,315,308,302,294,462,457,457,385,394,367,367,381,355,353,361,351,386,313,431,429,654,654,795,824,828,622,1452,1281,1094,774,729,716,1428,1127,1743,1741]} 1. e4 {[%emt 0:00:02]} c5 {[%emt 0:00:07]} 2. Nc3 {[%emt 0:01:00]} Nc6 {[%emt 0:00:17]} 3. Bb5 {[%emt 0:01:36]} a6 {[%emt 0:01:02]} 4. Bxc6 {[%emt 0:00:10]} bxc6 {[%emt 0:00:30]} 5. d3 {[%emt 0:00:59]} d6 {[%emt 0:06:21]} 6. f4 {[%emt 0:02:12] B23: Closed Sicilian: Lines without g3.} e6 {[%emt 0:02:42]} 7. Nf3 {[%emt 0:00:12]} g6 {[%emt 0:02:51]} (7... Nh6 $142) 8. O-O $16 {[%emt 0:00:26] White is clearly better.} Bg7 {[%emt 0:00:21] [#]} 9. Na4 $146 {[%emt 0:03:18]} ({Predecessor:} 9. Qe1 d5 10. Qg3 Nf6 11. Qh3 Qb6 12. Kh1 h5 13. Rb1 Ng4 14. Na4 Qa7 15. c3 dxe4 16. dxe4 {1-0 Swayams,M (2440)-Kambrath,Y (2312) Paris-ch 92nd 2017 (7)}) 9... Ne7 {[%emt 0:03:31]} 10. Rb1 {[%emt 0:05:41]} O-O {[%emt 0:03:32]} 11. b3 {[%emt 0:00:59]} f5 {[%emt 0:04:42]} (11... f6 $16) 12. c4 {[%emt 0:00:54]} Qc7 {[%emt 0:06:39]} (12... Bd4+ $16 13. Nxd4 cxd4) 13. Qe1 {[%emt 0:02:26]} Bd7 {[%emt 0:08:22]} (13... g5 {keeps fighting.}) 14. e5 $18 {[%emt 0:09:34]} Rad8 {[%emt 0:02:25]} 15. Be3 {[%emt 0:08:41] [#] Strongly threatening exd6.} ({Much less strong is} 15. Qh4 Nc8 16. Be3 Qb8 $18) 15... Bc8 {[%emt 0:02:19]} 16. exd6 {[%emt 0:02:23]} Rxd6 {[%emt 0:00:16]} 17. Nxc5 {[%emt 0:01:16]} Kh8 {[%emt 0:02:38]} 18. Qh4 {[%emt 0:08:34]} Bf6 {[%emt 0:02:47]} 19. Qf2 {[%emt 0:07:07]} Rfd8 {[%emt 0:02:21]} 20. b4 {[%emt 0:09:00]} Ng8 {[%emt 0:03:21]} 21. a4 {[%emt 0:01:40]} Bg7 {[%emt 0:01:58]} 22. h3 {[%emt 0:10:22][%cal Bh2h3,Bh3g4][%mdl 32]} Nf6 {[%emt 0:02:26]} 23. Ne5 {[%emt 0:01:30]} Nh5 {[%emt 0:05:51]} 24. g4 {[%emt 0:05:05]} fxg4 {[%emt 0:01:24]} (24... Nf6 {was necessary.} 25. Rbe1 Rf8) 25. hxg4 {[%emt 0:00:11]} Nf6 {[%emt 0:00:06]} 26. Kg2 {[%emt 0:01:11]} Nd7 {[%emt 0:02:34]} 27. Nf7+ {[%emt 0:01:03] Excellent horsemanship. Black is weak on the dark squares} Kg8 {[%emt 0:00:01]} 28. Nxd6 {[%emt 0:02:28]} Qxd6 {[%emt 0:00:22]} 29. Rbd1 {[%emt 0:01:10]} Nf6 {[%emt 0:00:56]} 30. Qg3 {[%emt 0:03:00]} Qe7 {[%emt 0:02:12]} 31. d4 {[%emt 0:04:23]} h5 {[%emt 0:02:11]} 32. gxh5 {[%emt 0:07:57] White is clearly winning.} Nxh5 {[%emt 0:00:08]} (32... gxh5 $142 33. Qg5 Re8) 33. Qxg6 {[%emt 0:00:00]} Nf6 {[%emt 0:03:38]} 34. Rh1 {[%emt 0:00:00][%cal Bf1h1,Bh1h2,Bh2h8][%mdl 32]} Rf8 {[%emt 0:00:40]} 35. Rh2 {[%emt 0:00:00] [#] Rdh1 would kill now.} Rf7 {[%emt 0:00:29]} 36. Rdh1 {[%emt 0:00:00][%csl Gh1][%cal Rh2h8]} Kf8 {[%emt 0:01:17]} 37. Rh8+ {[%emt 0:00:00]} Ng8 {[%emt 0:00:12]} 38. R8h7 {[%emt 0:00:00]} e5 {[%emt 0:02:30]} 39. Qxc6 {[%emt 0:02:01]} Qd8 {[%emt 0:02:15]} 40. dxe5 {[%emt 0:00:56] Black did not feel at home in the position after the opening. A cool game by Trunz.   Weighted Error Value: White=0.28 (precise) /Black=0.47} ({Inferior is} 40. Nxa6 Bb7 $15) 1-0